bitfinex/quotes_ETHUSD_20220105
["timestamp","ask_amount","ask_price","bid_price","bid_amount"]
[1641349407763,4.16680643,3802.9,3802.6,0.00625266]
[1641349407959,4.16680643,3802.9,3802.4,0.6577941]
[1641349407960,1.65779,3802.8,3802.4,0.6577941]
[1641349408159,1.65779,3802.8,3802.5,0.00682108]
[1641349408602,3.75799252,3802.8,3802.5,0.00682108]
[1641349408800,3.75799252,3802.8,3802.2,0.00852635]
[1641349409202,1.65779,3802.8,3802.2,0.00852635]
[1641349409525,1.65779,3802.8,3802.3,0.657804]
[1641349409702,0.65779,3802.8,3802.1,0.00909478]
[1641349409903,1.65779,3802.8,3802.4,0.00738951]
[1641349410103,0.65779,3802.8,3802.1,0.00909478]
[1641349410402,1.65779,3802.8,3802.1,0.00909478]
[1641349410803,1.65779,3802.8,3802.5,0.6577739]
[1641349411009,0.65779,3802.8,3802.5,0.6577739]
[1641349411209,1.65779,3802.8,3802.6,0.00625266]
[1641349411608,0.65779,3802.7,3802.6,0.00625266]
[1641349416604,0.65779,3802.7,3802.4,0.6577966]
[1641349416803,0.6578,3802.6,3802.5,0.00682108]
[1641349417005,0.9578,3802.6,3802.5,0.00682108]
[1641349417607,1.9578,3802.6,3802.5,0.00682108]
[1641349418811,0.65782,3802.5,3802.3,0.00795793]
[1641349419210,0.65782,3802.4,3802.1,0.00909478]
[1641349420363,1.34599506,3802.2,3802.1,0.00909478]
[1641349420560,1.64599506,3802.2,3802.1,0.00909478]
[1641349420760,0.3,3802.2,3802.1,0.00909478]
[1641349421060,0.95785,3802.3,3802.1,0.00909478]
[1641349421260,1.95785,3802.3,3802.1,0.00909478]
[1641349421461,0.95785,3802.3,3802.1,0.00909478]
[1641349421662,1.95785,3802.3,3802.1,0.00909478]
[1641349421861,0.95785,3802.3,3802.1,0.00909478]
[1641349422061,1.95785,3802.3,3802.1,0.00909478]
[1641349422463,0.95785,3802.3,3802.1,0.00909478]
[1641349422661,1.95785,3802.3,3802.1,0.00909478]
[1641349423908,0.95785,3802.3,3802.1,0.00909478]
[1641349425014,0.3,3802.3,3802.1,0.00909478]
[1641349425208,1.2006,3803.0,3802.1,0.00909478]
[1641349426518,1.5006,3803.0,3802.1,0.00909478]
[1641349426715,2.15834,3803.0,3802.1,0.00909478]
[1641349426916,0.65773,3802.8,3802.1,0.00909478]
[1641349428355,0.65773,3802.8,3802.3,1.3154631]
[1641349428555,0.3,3802.7,3802.3,1.3154631]
[1641349428756,0.65778,3802.6,3802.4,0.00738951]
[1641349429855,0.65778,3802.6,3802.4,1.32291571]
[1641349430260,0.65778,3802.6,3802.5,0.00682108]
[1641349434412,0.95778,3802.6,3801.7,1.86265]
[1641349434612,0.65776,3802.4,3801.7,1.86265]
[1641349434852,0.65776,3802.4,3801.8,0.00397897]
[1641349435853,0.65776,3802.4,3802.1,0.6577594]
[1641349436256,0.65776,3802.4,3802.2,0.00170527]
[1641349437960,0.65773,3802.5,3802.2,0.00170527]
[1641349438358,0.65773,3802.5,3802.2,0.65945297]
[1641349438810,0.65773,3802.5,3802.3,0.00113685]
[1641349440216,1.31551,3802.5,3802.3,0.00113685]
[1641349440615,2.31551,3802.5,3802.3,0.00113685]
[1641349440816,1.31551,3802.5,3802.3,0.00113685]
[1641349441016,2.31551,3802.5,3802.3,0.00113685]
[1641349441217,1.31551,3802.5,3802.3,0.00113685]
[1641349441417,2.31551,3802.5,3802.3,0.00113685]
[1641349442018,1.31551,3802.5,3802.3,0.00113685]
[1641349442218,2.31551,3802.5,3802.3,0.00113685]
[1641349442458,1.31551,3802.5,3802.3,0.00113685]
[1641349442654,2.31551,3802.5,3802.3,0.00113685]
[1641349442857,1.31551,3802.5,3802.3,0.00113685]
[1641349443057,2.31551,3802.5,3802.3,0.00113685]
[1641349443255,1.31551,3802.5,3802.3,0.00113685]
[1641349443456,2.31551,3802.5,3802.3,0.00113685]
[1641349443654,2.31551,3802.5,3802.3,1.31667515]
[1641349445060,1.31551,3802.5,3802.3,1.31667515]
[1641349445262,2.31551,3802.5,3802.3,1.31667515]
[1641349445667,1.31551,3802.5,3802.3,1.31667515]
[1641349445867,2.31551,3802.5,3802.3,1.31667515]
[1641349446505,1.31551,3802.5,3802.3,1.31667515]
[1641349446704,2.31551,3802.5,3802.3,1.31667515]
[1641349447105,1.31551,3802.5,3802.3,1.31667515]
[1641349447404,2.31551,3802.5,3802.3,1.31667515]
[1641349448007,1.31551,3802.5,3802.3,1.31667515]
[1641349448211,2.31551,3802.5,3802.3,1.31667515]
[1641349448407,0.01196547,3802.4,3802.3,1.31667515]
[1641349449107,0.01196547,3802.4,3802.3,1.26667515]
[1641349452261,0.01196547,3802.4,3802.3,0.00113685]
[1641349454614,0.01196547,3802.4,3802.1,0.6577676]
[1641349454615,0.01196547,3802.4,3802.2,0.00170527]
[1641349454817,0.65777,3802.3,3802.2,0.00170527]
[1641349455015,0.95777,3802.3,3802.2,0.00170527]
[1641349456420,0.3,3802.3,3802.2,0.00170527]
[1641349461217,0.3,3802.3,3801.9,0.00341054]
[1641349461412,0.95776,3802.3,3801.9,0.00341054]
[1641349461610,0.3,3802.3,3801.9,0.00341054]
[1641349461812,1.31196547,3802.4,3802.0,0.6577748]
[1641349462212,0.31196547,3802.4,3802.1,0.0022737]
[1641349462412,1.31196547,3802.4,3802.1,0.0022737]
[1641349462611,1.01196547,3802.4,3802.1,0.0022737]
[1641349462913,0.65779,3802.2,3802.1,0.0022737]
[1641349464015,0.95778,3802.3,3802.1,0.0022737]
[1641349464212,0.65778,3802.3,3802.1,0.0022737]
[1641349464412,0.95778,3802.3,3802.1,0.0022737]
[1641349464612,0.65778,3802.3,3802.1,0.0022737]
[1641349464855,2.32745547,3802.4,3802.1,0.0022737]
[1641349465055,2.32745547,3802.4,3802.1,0.6599959]
[1641349465056,1.32745547,3802.4,3802.1,0.6599959]
[1641349465255,2.32745547,3802.4,3802.1,0.6599959]
[1641349465461,2.32745547,3802.4,3802.2,0.00170527]
[1641349466466,1.32745547,3802.4,3802.2,0.00170527]
[1641349466662,2.32745547,3802.4,3802.2,0.00170527]
[1641349466962,1.32745547,3802.4,3802.2,0.00170527]
[1641349467162,2.32745547,3802.4,3802.2,0.00170527]
[1641349467365,1.32745547,3802.4,3802.2,0.00170527]
[1641349467564,2.32745547,3802.4,3802.2,0.00170527]
[1641349467764,1.32745547,3802.4,3802.2,0.00170527]
[1641349470213,0.66969547,3802.4,3802.2,0.00170527]
[1641349471013,0.01196547,3802.4,3802.2,1.31709087]
[1641349471414,0.01196547,3802.4,3802.3,0.00113685]
[1641349475966,0.01196547,3802.4,3802.1,0.0022737]
[1641349476214,0.66975547,3802.4,3802.1,0.0022737]
[1641349476416,0.6578,3802.3,3802.1,0.0022737]
[1641349476614,0.9578,3802.3,3802.1,0.0022737]
[1641349477114,1.9578,3802.3,3802.1,0.0022737]
[1641349477314,0.9578,3802.3,3802.1,0.0022737]
[1641349477518,1.9578,3802.3,3802.1,0.0022737]
[1641349477815,1.6156,3802.3,3802.1,0.0022737]
[1641349478016,2.6156,3802.3,3802.1,0.0022737]
[1641349478215,1.6156,3802.3,3802.1,0.0022737]
[1641349478417,0.7893,3802.2,3802.1,0.0022737]
[1641349478618,0.7893,3802.2,3802.1,0.3022737]
[1641349478815,0.7893,3802.2,3802.1,0.0022737]
[1641349480073,0.7893,3802.2,3802.1,0.3022737]
[1641349480468,0.7893,3802.2,3802.1,4.0022737]
[1641349482470,0.7893,3802.2,3802.1,6.34002898]
[1641349483714,0.7893,3802.2,3802.1,2.64002898]
[1641349484515,0.7893,3802.2,3802.1,2.34002898]
[1641349484919,1.0893,3802.2,3802.1,2.34002898]
[1641349485821,1.0893,3802.2,3802.1,0.0022737]
[1641349492615,1.0893,3802.2,3801.9,0.14259946]
[1641349493015,1.0893,3802.2,3801.9,0.80032946]
[1641349493412,1.0893,3802.2,3802.0,3.26788915]
[1641349494015,1.0893,3802.2,3802.1,1.95206931]
[1641349494616,1.10126514,3802.2,3802.1,1.95206931]
[1641349498718,1.10126514,3802.2,3802.0,1.3154342]
[1641349499318,1.10126514,3802.2,3802.0,3.26539472]
[1641349499518,1.10126514,3802.2,3802.0,1.3154342]
[1641349499719,1.10126514,3802.2,3802.0,3.27828082]
[1641349500122,1.10126514,3802.2,3802.1,1.95087424]
[1641349500722,0.80126514,3802.2,3802.1,1.95087424]
[1641349501925,0.80126514,3802.2,3802.0,1.9730908]
[1641349501926,3.90126514,3802.2,3802.0,1.9730908]
[1641349502129,3.90126514,3802.2,3801.4,1.93147923]
[1641349502130,5.2893,3801.9,3801.2,0.61543799]
[1641349502366,0.7893,3801.6,3800.6,1.13057223]
[1641349502566,1.3893,3801.4,3801.3,0.00454738]
[1641349502766,1.3893,3801.4,3800.6,1.13057223]
[1641349502767,2.10556,3801.2,3800.6,1.13057223]
[1641349502965,5.2893,3800.9,3800.6,1.13057223]
[1641349503170,11.7423,3800.9,3800.6,1.13057223]
[1641349503466,11.7423,3800.9,3800.8,0.00284212]
[1641349504669,12.40047,3800.9,3800.8,0.00284212]
[1641349505470,12.40047,3800.9,3800.6,1.13057223]
[1641349505471,5.2893,3800.7,3800.6,1.13057223]
[1641349505674,8.72218797,3800.7,3800.6,1.13057223]
[1641349505870,9.02218797,3800.7,3800.6,1.13170908]
[1641349507120,4.52218797,3800.7,3800.6,1.13170908]
[1641349509520,4.53929022,3800.7,3800.6,1.13170908]
[1641349510089,4.83929022,3800.7,3800.6,1.13170908]
[1641349510282,9.31029022,3800.7,3800.6,1.13170908]
[1641349510682,9.41029022,3800.7,3800.6,1.13170908]
[1641349510885,9.40869022,3800.7,3800.6,1.13170908]
[1641349511084,9.40949022,3800.7,3800.6,1.13170908]
[1641349511289,9.41029022,3800.7,3800.6,1.13170908]
[1641349511588,9.31029022,3800.7,3800.6,1.13170908]
[1641349513495,9.31029022,3800.7,3800.2,0.0174797]
[1641349513496,0.65824,3800.4,3800.2,0.0174797]
[1641349513718,7.5331315,3800.3,3800.2,0.0174797]
[1641349513917,7.8331315,3800.3,3800.2,0.0174797]
[1641349514319,3.5831315,3800.3,3800.2,0.0174797]
[1641349515121,3.60023375,3800.3,3800.2,0.0174797]
[1641349515322,0.7893,3799.8,3799.4,6.64175359]
[1641349515521,0.7893,3799.6,3799.4,6.14]
[1641349515723,0.7893,3799.6,3799.5,0.00625266]
[1641349515922,1.0893,3799.6,3799.5,0.00625266]
[1641349516824,1.0893,3799.6,3799.4,5.06707082]
[1641349516825,5.2893,3799.5,3799.4,5.06707082]
[1641349517024,5.6713,3799.5,3799.4,5.06707082]
[1641349517223,0.65845,3799.2,3798.7,6.14]
[1641349517465,7.77250274,3799.5,3798.7,6.14]
[1641349517466,1.1713,3799.1,3798.7,6.14]
[1641349517668,1.1713,3799.0,3798.8,0.00397896]
[1641349518164,1.44775,3798.9,3798.8,0.00397896]
[1641349518365,2.12975,3798.9,3798.8,0.00397896]
[1641349520667,2.14685225,3798.9,3797.8,0.0096632]
[1641349520867,0.7893,3798.4,3797.8,0.0096632]
[1641349521130,0.7893,3798.2,3797.8,0.0096632]
[1641349525974,0.80640225,3798.2,3797.8,0.0096632]
[1641349531924,0.7893,3798.0,3797.8,0.0096632]
[1641349532126,0.7893,3797.9,3797.8,0.0096632]
[1641349535481,0.7893,3797.9,3797.8,1.14683666]
[1641349535983,0.7893,3797.9,3797.8,1.44683666]
[1641349536719,0.7893,3797.9,3797.8,3.84683666]
[1641349537122,0.7893,3797.9,3797.8,1.44683666]
[1641349538721,0.7893,3797.9,3797.8,1.44779493]
[1641349539322,0.7893,3797.9,3797.8,2.44779493]
[1641349539524,0.7893,3797.9,3797.8,1.44779493]
[1641349545316,0.7893,3797.9,3797.8,1.14779493]
[1641349546520,0.7893,3797.9,3797.8,1.44779493]
[1641349550665,0.01710225,3798.2,3797.9,1.18668827]
[1641349550961,0.01710225,3798.2,3797.9,1.19578304]
[1641349553635,0.01710225,3798.2,3797.9,2.31234225]
[1641349554637,0.01710225,3798.2,3797.9,1.19578304]
[1641349554866,0.01710225,3798.2,3797.9,0.00909477]
[1641349555261,0.01710225,3798.2,3797.8,0.0096632]
[1641349556063,0.01710225,3798.2,3798.0,1.06404677]
[1641349556465,0.01710225,3798.2,3798.1,0.00795792]
[1641349559715,0.01710225,3798.2,3798.1,0.00880975]
[1641349562220,0.01710225,3798.2,3798.0,0.92285652]
[1641349567524,0.01710225,3798.2,3798.0,1.22285652]
[1641349567725,0.01710225,3798.2,3798.1,0.3]
[1641349567924,0.01710225,3798.2,3798.0,1.22285652]
[1641349568725,0.01710225,3798.2,3798.0,0.92285652]
[1641349577775,0.01710225,3798.2,3798.0,1.88119112]
[1641349578276,0.01710225,3798.2,3798.0,1.58119112]
[1641349578482,0.01710225,3798.2,3798.0,0.92285652]
[1641349587179,0.01710225,3798.2,3798.1,1.5030521]
[1641349588381,0.01710225,3798.2,3798.0,0.92285652]
[1641349597431,0.01710225,3798.2,3797.9,0.65842]
[1641349599234,0.01710225,3798.2,3798.0,1.41526851]
[1641349600274,0.01710225,3798.2,3797.9,0.65842]
[1641349601279,0.01710225,3798.2,3797.9,1.79340258]
[1641349615783,0.01710225,3798.2,3798.0,0.95831]
[1641349615981,0.01710225,3798.2,3798.0,0.3]
[1641349616882,0.01710225,3798.2,3797.9,3.11007668]
[1641349618082,0.01710225,3798.2,3797.9,2.45176258]
[1641349618927,0.01710225,3798.2,3797.9,1.79340258]
[1641349628145,0.01710225,3798.2,3797.9,0.65842]
[1641349630579,0.01710225,3798.2,3797.9,1.78270872]
[1641349639681,0.01710225,3798.2,3798.0,0.65829]
[1641349640780,0.01710225,3798.2,3797.9,2.44106872]
[1641349640980,0.01710225,3798.2,3797.9,1.78270872]
[1641349642429,0.01710225,3798.2,3798.0,0.3]
[1641349642629,0.01710225,3798.2,3798.0,1.0342]
[1641349642829,3.49944411,3799.4,3798.6,0.6582]
[1641349643028,3.49944411,3799.4,3798.5,1.31639]
[1641349643029,3.49944411,3799.4,3798.5,1.61639]
[1641349643230,0.00682108,3799.3,3798.5,1.61639]
[1641349643632,0.00625265,3799.2,3798.5,1.61639]
[1641349643834,0.00625265,3799.2,3798.5,1.31639]
[1641349644031,1.48684797,3799.1,3798.5,1.31639]
[1641349644431,0.00511581,3799.0,3798.7,0.65829]
[1641349644633,0.00511581,3799.0,3798.5,1.31639]
[1641349644890,2.13953374,3799.1,3798.5,1.31639]
[1641349644891,0.00454738,3798.9,3798.5,1.31639]
[1641349645077,0.00454738,3798.9,3798.2,1.1276]
[1641349645277,0.00397896,3798.8,3798.2,1.1276]
[1641349645483,0.00397896,3798.8,3798.2,1.78602]
[1641349645683,0.00341054,3798.7,3798.2,1.78602]
[1641349645985,2.11490855,3799.0,3798.2,1.78602]
[1641349645986,0.00284211,3798.6,3798.2,1.78602]
[1641349646388,1.49796289,3798.3,3798.2,1.78602]
[1641349646585,1.49796289,3798.3,3798.2,0.65842]
[1641349646785,1.49909973,3798.3,3798.2,0.65842]
[1641349649342,0.00113684,3798.3,3798.2,0.65842]
[1641349653082,0.00113684,3798.3,3798.2,5.11671]
[1641349653282,0.00113684,3798.3,3798.2,1.31671]
[1641349653781,0.00113684,3798.3,3798.2,1.61671]
[1641349653782,0.01142153,3798.3,3798.2,1.61671]
[1641349657834,0.01142153,3798.3,3798.2,1.31671]
[1641349658034,0.01142153,3798.3,3798.2,0.65842]
[1641349664833,0.01142153,3798.3,3798.2,0.95842]
[1641349665835,0.01142153,3798.3,3798.2,1.25842]
[1641349668482,0.01142153,3798.3,3798.2,16.66842]
[1641349668682,0.01142153,3798.3,3798.2,1.25842]
[1641349671832,0.01142153,3798.3,3798.2,22.06842]
[1641349672836,3.2131,3799.7,3798.3,4.5]
[1641349673035,3.2131,3799.7,3798.9,0.6581495]
[1641349673236,0.00738951,3799.6,3799.0,0.65815]
[1641349673436,0.00738951,3799.6,3798.8,1.316299]
[1641349673635,0.00738951,3799.6,3798.8,1.616299]
[1641349673636,0.00682108,3799.5,3798.8,1.616299]
[1641349674039,0.00625266,3799.4,3798.5,2.81982261]
[1641349674434,0.00568424,3799.3,3798.5,2.81982261]
[1641349674884,2.08845882,3799.6,3798.5,1.1706]
[1641349674885,0.00511581,3799.2,3798.5,1.1706]
[1641349675088,0.00511581,3799.2,3798.8,1.31644]
[1641349675284,0.00454739,3799.1,3798.8,1.31644]
[1641349675485,0.00454739,3799.1,3798.1,0.0584]
[1641349675687,0.00397897,3799.0,3798.1,0.0584]
[1641349675984,0.00341054,3798.9,3798.1,0.0584]
[1641349676186,0.00341054,3798.9,3798.1,1.34899878]
[1641349676386,0.00284212,3798.8,3798.4,1.31657]
[1641349676786,0.0022737,3798.7,3798.5,0.65835]
[1641349677186,0.65837,3799.0,3798.5,0.65835]
[1641349677187,0.00170527,3798.6,3798.5,0.65835]
[1641349677787,0.00170527,3798.6,3798.2,1.3166502]
[1641349677987,0.00170527,3798.6,3798.3,0.6583]
[1641349678189,2.17188468,3799.6,3798.3,0.6583]
[1641349678190,0.00113685,3798.5,3798.3,0.6583]
[1641349678487,0.00682108,3799.5,3798.4,0.3]
[1641349678739,0.00682108,3799.5,3798.4,1.61661]
[1641349678937,0.66454266,3799.4,3798.4,2.2749107]
[1641349679341,0.00568424,3799.3,3798.4,2.2749107]
[1641349679745,0.00511581,3799.2,3798.8,0.65829]
[1641349679942,0.66348701,3799.2,3798.1,1.3167]
[1641349680146,0.65838,3798.8,3798.1,1.3167]
[1641349680342,2.15162901,3798.7,3798.1,1.3167]
[1641349680541,0.0022737,3798.7,3798.1,1.3167]
[1641349680744,0.00170527,3798.6,3798.1,1.3167]
[1641349681141,0.00113685,3798.5,3798.1,1.3167]
[1641349681343,0.65957685,3798.5,3798.1,1.3167]
[1641349681546,0.65844,3798.5,3798.1,1.3167]
[1641349682146,1.8474823,3798.5,3798.1,1.3167]
[1641349682381,2.66130487,3798.7,3798.2,0.65841]
[1641349682585,0.65841,3798.7,3798.2,0.65841]
[1641349682783,0.00170527,3798.6,3798.1,1.3167]
[1641349683181,0.00113685,3798.5,3798.1,1.3167]
[1641349683580,1.3289306,3798.6,3798.1,1.3167]
[1641349683581,1.33063587,3798.6,3798.1,1.3167]
[1641349683782,1.32673587,3798.6,3798.3,0.65839]
[1641349683984,0.00113685,3798.5,3798.3,0.65839]
[1641349684182,0.00113685,3798.5,3797.8,0.65839]
[1641349684585,0.00113685,3798.5,3797.9,0.00227369]
[1641349685387,0.00113685,3798.5,3797.8,0.00284212]
[1641349685786,0.00113685,3798.5,3798.1,0.65842]
[1641349685988,0.00113685,3798.5,3797.8,0.00284212]
[1641349687039,0.00113685,3798.5,3798.1,0.65844]
[1641349687239,2.64780829,3798.5,3798.1,0.65844]
[1641349687439,0.65957685,3798.5,3798.1,0.65844]
[1641349688642,0.65957685,3798.5,3797.8,0.66130212]
[1641349689640,0.00113685,3798.5,3797.8,0.66130212]
[1641349689882,0.00113685,3798.5,3797.8,1.31970212]
[1641349691589,0.00113685,3798.5,3797.8,0.66130212]
[1641349691889,0.65956685,3798.5,3797.8,0.66130212]
[1641349699194,1.25899303,3798.0,3797.8,0.66130212]
[1641349699795,0.00113685,3798.5,3797.8,0.66130212]
[1641349701942,0.00113685,3798.5,3797.8,1.31970212]
[1641349702741,0.00113685,3798.5,3797.8,0.66130212]
[1641349704443,0.00113685,3798.5,3797.8,1.31969212]
[1641349705682,0.00113685,3798.5,3797.9,0.65838]
[1641349705882,0.00113685,3798.5,3798.2,0.65837]
[1641349707387,0.00113685,3798.5,3798.3,3.09920793]
[1641349707586,0.00113685,3798.5,3798.4,1.97213994]
[1641349708742,0.00113685,3798.5,3798.4,20.15372657]
[1641349708948,0.00113685,3798.5,3798.4,21.15372657]
[1641349709143,0.00113685,3798.5,3798.4,19.69653994]
[1641349709741,0.00113685,3798.5,3798.4,21.01289994]
[1641349709941,0.00113685,3798.5,3798.4,19.04076]
[1641349710141,1.23546481,3800.1,3798.5,4.5]
[1641349710343,1.228,3800.6,3799.5,0.6581]
[1641349710547,0.0073895,3799.8,3799.5,1.497]
[1641349710743,0.0073895,3799.8,3799.6,0.3]
[1641349710944,0.00682108,3799.7,3799.6,0.3]
[1641349711344,0.00682108,3799.7,3799.6,0.9580236]
[1641349711743,0.00682108,3799.7,3799.6,0.3]
[1641349712145,0.00682108,3799.7,3799.5,2.5920147]
[1641349712378,0.00682108,3799.7,3799.5,1.9339347]
[1641349712583,0.00625266,3799.6,3799.5,1.9339347]
[1641349712780,0.00625266,3799.6,3799.5,1.5758347]
[1641349712981,0.00625266,3799.6,3799.4,1.3162]
[1641349713180,6.868,3799.5,3799.4,1.3162]
[1641349713382,6.87368423,3799.5,3799.4,1.3162]
[1641349715688,8.27290668,3799.5,3799.4,1.3162]
[1641349716743,6.87368423,3799.5,3799.4,1.3162]
[1641349717339,6.87368423,3799.5,3799.3,1.31622]
[1641349717639,0.00511581,3799.4,3799.3,1.31622]
[1641349718343,1.11366775,3799.3,3799.2,0.01801859]
[1641349718740,1.11821514,3799.3,3799.2,0.01801859]
[1641349719245,1.11821514,3799.3,3798.6,2.49819147]
[1641349719440,1.11821514,3799.3,3798.8,0.01801927]
[1641349719640,0.00397896,3799.2,3798.8,0.01801927]
[1641349719892,0.00397896,3799.2,3799.0,0.65827]
[1641349720081,1.11366775,3799.3,3799.0,0.65827]
[1641349720082,0.00341054,3799.1,3799.0,0.65827]
[1641349724034,0.00341054,3799.1,3799.0,0.95827]
[1641349724234,0.00341054,3799.1,3799.0,0.65827]
[1641349724438,0.00341054,3799.1,3799.0,0.95827]
[1641349725139,0.00341054,3799.1,3799.0,1.61643]
[1641349726542,0.00341054,3799.1,3799.0,1.31643]
[1641349726948,0.00341054,3799.1,3799.0,0.65827]
[1641349727792,0.00341054,3799.1,3799.0,0.95827]
[1641349727995,0.00341054,3799.1,3799.0,3.18665834]
[1641349728196,0.00341054,3799.1,3799.0,3.84481834]
[1641349729796,0.00341054,3799.1,3799.0,3.54481834]
[1641349729997,0.00341054,3799.1,3799.0,1.61643]
[1641349731841,0.00341054,3799.1,3799.0,1.91643]
[1641349732042,0.00341054,3799.1,3799.0,3.84347221]
[1641349733045,0.00341054,3799.1,3799.0,1.91643]
[1641349733844,0.00341054,3799.1,3799.0,3.65345319]
[1641349734445,0.00341054,3799.1,3799.0,4.65345319]
[1641349734888,0.00341054,3799.1,3799.0,4.95345319]
[1641349735490,0.00341054,3799.1,3799.0,2.91643]
[1641349735888,0.00341054,3799.1,3799.0,1.61643]
[1641349736092,0.00341054,3799.1,3799.0,0.65827]
[1641349737499,0.00341054,3799.1,3799.0,0.95827]
[1641349737698,0.00341054,3799.1,3799.0,0.65827]
[1641349737897,0.00341054,3799.1,3799.0,0.95827]
[1641349738498,0.00341054,3799.1,3799.0,0.65827]
[1641349738735,0.00341054,3799.1,3799.0,0.95827]
[1641349742589,0.00341054,3799.1,3799.0,3.16210475]
[1641349742789,0.00341054,3799.1,3799.0,4.16210475]
[1641349742986,6.868,3799.5,3799.2,15.41]
[1641349743188,6.868,3799.5,3799.3,1.31599]
[1641349743386,0.00170527,3799.4,3799.3,0.658]
[1641349743588,0.00170527,3799.4,3799.2,1.31599]
[1641349743987,0.00113685,3799.3,3799.2,1.31599]
[1641349746241,0.00113685,3799.3,3799.2,1.29599]
[1641349747043,0.00113685,3799.3,3799.2,1.59599]
[1641349747542,0.00113685,3799.3,3799.2,3.52392632]
[1641349747945,0.00113685,3799.3,3799.2,3.51726788]
[1641349750387,0.00113685,3799.3,3799.2,1.29599]
[1641349750591,0.00113685,3799.3,3799.0,0.65825]
[1641349751688,0.00113685,3799.3,3799.1,1.31632]
[1641349752088,0.00113685,3799.3,3799.1,1.61632]
[1641349753491,0.00113685,3799.3,3799.1,1.91632]
[1641349753736,0.00113685,3799.3,3799.1,3.2325336]
[1641349753935,0.00113685,3799.3,3799.1,4.2325336]
[1641349755536,0.00113685,3799.3,3799.1,2.9325336]
[1641349755741,0.00113685,3799.3,3799.1,1.61632]
[1641349756540,0.00113685,3799.3,3799.1,2.91632]
[1641349756740,0.00113685,3799.3,3799.1,1.91632]
[1641349757140,0.00113685,3799.3,3799.1,2.91632]
[1641349757788,0.00113685,3799.3,3799.1,2.9325319]
[1641349758887,0.00113685,3799.3,3799.2,1.3]
[1641349760588,0.00113685,3799.3,3799.2,0.3]
[1641349760788,0.00113685,3799.3,3799.1,2.91632]
[1641349761439,0.00113685,3799.3,3799.1,1.31632]
[1641349762939,0.00113685,3799.3,3799.1,1.61632]
[1641349763138,0.00113685,3799.3,3799.1,2.91632]
[1641349763740,0.00113685,3799.3,3799.1,4.2325354]
[1641349764342,0.00113685,3799.3,3799.1,2.91632]
[1641349764987,0.00113685,3799.3,3799.1,3.57443]
[1641349765889,0.00113685,3799.3,3799.1,1.31632]
[1641349766091,0.00113685,3799.3,3798.8,1.33422927]
[1641349766092,0.00113685,3799.3,3798.8,0.01801927]
[1641349766293,0.00113685,3799.3,3798.8,0.67627927]
[1641349766491,0.00113685,3799.3,3798.9,0.00113685]
[1641349766993,1.35728017,3799.2,3798.9,0.00113685]
[1641349767194,0.00113685,3799.3,3798.9,0.00113685]
[1641349767394,0.00113685,3799.3,3799.0,0.65821]
[1641349774390,6.868,3799.5,3799.0,0.65821]
[1641349774691,0.00170527,3799.4,3799.2,0.65819]
[1641349775092,0.00113685,3799.3,3799.2,0.65819]
[1641349778447,0.00113685,3799.3,3798.9,0.00113685]
[1641349778649,1.08333685,3799.3,3798.9,0.00113685]
[1641349779552,1.3166239,3799.2,3798.9,0.00113685]
[1641349779750,1.37071575,3799.1,3798.9,0.00113685]
[1641349780793,2.0908054,3799.0,3798.9,0.00113685]
[1641349781698,2.0908054,3799.0,3798.1,0.00568423]
[1641349781893,2.0908054,3799.0,3798.5,0.01825795]
[1641349782393,2.0908054,3799.0,3798.6,0.00284212]
[1641349783194,0.00113685,3799.3,3798.6,0.00284212]
[1641349784441,0.00113685,3799.3,3798.8,0.65819]
[1641349785248,1.16167143,3799.2,3798.8,0.65819]
[1641349785743,1.16167143,3799.2,3798.6,0.00284212]
[1641349789491,1.16167143,3799.2,3798.7,0.6582]
[1641349789896,1.16167143,3799.2,3798.8,0.00170527]
[1641349791141,1.16167143,3799.2,3798.8,0.65988527]
[1641349792146,1.16167143,3799.2,3798.8,0.00170527]
[1641349792545,1.16167143,3799.2,3798.6,0.00284212]
[1641349793745,1.16167143,3799.2,3798.7,0.6582]
[1641349794147,1.16167143,3799.2,3798.8,0.00170527]
[1641349794551,1.16167143,3799.2,3798.6,0.00284212]
[1641349795185,1.16167143,3799.2,3798.8,0.65818]
[1641349797591,1.16167143,3799.2,3798.8,1.31635]
[1641349797791,1.16167143,3799.2,3798.8,0.65818]
[1641349798393,1.16167143,3799.2,3798.6,0.00284212]
[1641349798659,1.16167143,3799.2,3798.6,1.31927212]
[1641349799150,1.16167143,3799.2,3798.7,0.00227369]
[1641349799550,1.81997143,3799.2,3798.6,0.00284212]
[1641349800351,0.6583051,3799.0,3798.6,0.00284212]
[1641349800550,3.15231488,3798.9,3798.6,0.00284212]
[1641349800950,1.2315,3798.8,3798.6,0.00284212]
[1641349801148,2.32190663,3798.7,3798.6,0.00284212]
[1641349801750,3.2,3798.6,3798.5,0.00010007]
[1641349801951,5.35961533,3798.6,3798.5,0.00010007]
[1641349802151,2.15961533,3798.6,3798.5,0.00010007]
[1641349802991,2.81806533,3798.6,3798.5,0.00010007]
[1641349803194,2.81806533,3798.6,3797.0,3.38774276]
[1641349803394,3.47646103,3798.6,3797.0,3.38774276]
[1641349803794,3.47646103,3798.6,3798.1,0.01839442]
[1641349804194,1.25520956,3798.5,3798.1,0.01839442]
[1641349804394,2.05438274,3798.4,3798.1,0.01839442]
[1641349804793,2.71282274,3798.4,3798.1,0.01839442]
[1641349805294,2.71282274,3798.4,3797.5,1.31684]
[1641349805594,1.3802374,3797.9,3797.5,1.31684]
[1641349806248,1.3802374,3797.9,3797.6,0.00568423]
[1641349806448,1.3802374,3797.9,3797.6,0.66409423]
[1641349806847,0.6584135,3798.3,3797.7,0.00511581]
[1641349807449,0.658379,3798.5,3797.7,0.66350581]
[1641349807651,2.66176205,3798.5,3797.7,0.66350581]
[1641349807849,1.15918364,3798.2,3797.8,0.00454739]
[1641349808653,1.15918364,3798.2,3797.7,0.00511581]
[1641349809456,1.15918364,3798.2,3797.9,0.12362312]
[1641349809895,1.15918364,3798.2,3798.0,0.00341054]
[1641349810295,0.658379,3798.5,3798.0,0.00341054]
[1641349811095,0.6583455,3798.6,3798.0,0.00341054]
[1641349811296,1.99350026,3798.6,3798.0,0.00341054]
[1641349811497,0.0566,3798.8,3798.2,1.20185972]
[1641349811696,7.8317,3799.2,3798.3,0.65827]
[1641349811697,5.2375076,3799.2,3798.3,0.65827]
[1641349811898,0.0606,3799.4,3798.3,0.65997527]
[1641349812096,0.00113685,3798.8,3798.6,0.65824]
[1641349813298,0.00113685,3798.8,3798.6,1.31646]
[1641349813942,0.00113685,3798.8,3798.4,0.65941684]
[1641349814143,0.00113685,3798.8,3798.4,0.00113684]